fUST/lending_fUST_20251014
["ID","MTS","AMOUNT","RATE_DAILY","PERIOD"]
[391266518,1760453432842,-500.0,0.0002009,2]
[391266520,1760453432851,-500.0,0.0002009,2]
[391266522,1760453432861,-567.06806355,0.0002009,2]
[391266524,1760453432870,-400.0,0.00020091,2]
[391266525,1760453432881,-7956.75,0.00020091,2]
[391266528,1760453432891,-7956.75,0.00020091,2]
[391266529,1760453432900,-7956.75,0.00020091,2]
[391266531,1760453432909,-452.60966087,0.00020091,2]
[391266533,1760453432920,-3557.87896873,0.00020091,2]
[391266547,1760453438422,-215.34,0.00020081,3]
[391266548,1760453438433,-617.6599536,0.00020091,2]
[391266549,1760453438564,-3328.6014168,0.00020091,2]
[391266550,1760453438574,-7956.75,0.00020091,2]
[391266551,1760453438584,-7956.75,0.00020091,2]
[391266552,1760453438593,-7956.75,0.00020091,2]
[391266553,1760453438602,-7956.75,0.00020091,2]
[391266554,1760453438611,-4650.33121637,0.00020091,2]
[391266555,1760453438622,-2667.96736924,0.00020091,2]
[391266556,1760453438966,-638.45141439,0.00020091,2]
[391266557,1760453438976,-7956.75,0.00020091,2]
[391266558,1760453438985,-4359.4451462,0.00020091,2]
[391266559,1760453438997,-3597.3048538,0.00020091,2]
[391266560,1760453439007,-7956.75,0.00020091,2]
[391266561,1760453439016,-7956.75,0.00020091,2]
[391266562,1760453439026,-7956.75,0.00020091,2]
[391266563,1760453439036,-7956.75,0.00020091,2]
[391266564,1760453439045,-7956.75,0.00020091,2]
[391266565,1760453439055,-1278.9451462,0.00020091,2]
[391266566,1760453439067,-472.80434153,0.00020091,2]
[391266567,1760453439078,-526.46954481,0.00020091,2]
[391266568,1760453439090,-5678.53096746,0.00020091,2]
[391266569,1760453439100,-6806.26679584,0.00020091,2]
[391266795,1760453446548,-29.32233684,0.00020091,2]
[391266796,1760453446567,-1121.16086732,0.00020091,2]
[391266797,1760453446575,-863.04822322,0.00020091,2]
[391266817,1760453686577,151.0,0.00030435,60]
[391267078,1760454126937,157.34573934,0.00018695,2]
[391267079,1760454133001,184.33940001,0.00018695,2]
[391267082,1760454249243,157.34573935,0.00018695,2]
[391267085,1760454364091,157.34573934,0.00018689,2]
[391267086,1760454502408,300.0,0.000187,2]
[391267087,1760454513673,300.0,0.000187,2]
[391267088,1760454525479,300.0,0.000187,2]
[391267089,1760454536858,300.0,0.000187,2]
[391267091,1760454547405,300.0,0.000187,2]
[391267093,1760454559225,300.0,0.000187,2]
[391267094,1760454561783,300.0,0.000187,2]
[391267095,1760454569687,300.0,0.000187,2]
[391267096,1760454573877,300.0,0.000187,2]
[391267097,1760454584540,300.0,0.000187,2]
[391267098,1760454608591,631.749978,0.00013699,2]
[391267141,1760454632083,-1256.11813259,0.00018971,2]
[391267142,1760454632095,-372.9,0.0001899,2]
[391267143,1760454632110,-349.9824372,0.00019255,2]
[391267146,1760454632124,-906.13569539,0.00019255,2]
[391267147,1760454632133,-163.02297247,0.00019273,2]
[391267149,1760454632143,-1573.7100735,0.00019415,2]
[391267151,1760454632154,-200.0,0.00019415,2]
[391267153,1760454632163,-1256.11813259,0.000195,2]
[391267155,1760454632172,-171.69304529,0.00019769,2]
[391267157,1760454632183,-187.47641834,0.00019873,2]
[391267159,1760454632193,-1200.0,0.00019874,2]
[391267161,1760454632202,-1200.0,0.00019875,2]
[391267163,1760454632214,-300.0,0.00019875,2]
[391267165,1760454632224,-300.0,0.00019875,2]
[391267167,1760454632233,-300.0,0.00019875,2]
[391267169,1760454632242,-1256.1181326,0.00019967,2]
[391267170,1760454632251,-500.0,0.00019973,2]
[391267172,1760454632260,-500.0,0.00019973,2]
[391267174,1760454632270,-500.0,0.00019973,2]
[391267176,1760454632279,-500.0,0.00019973,2]
[391267178,1760454632288,-500.0,0.00019973,2]
[391267180,1760454632298,-500.0,0.00019973,2]
[391267182,1760454632307,-500.0,0.00019973,2]
[391267184,1760454632317,-500.0,0.00019973,2]
[391267187,1760454632326,-500.0,0.00019973,2]
[391267190,1760454632335,-196.61,0.00019981,3]
[391267193,1760454632350,-589.85,0.00019981,3]
[391267196,1760454632370,-619.0,0.00019989,2]
[391267199,1760454632379,-2201.03571392,0.00019989,2]
[391267202,1760454632388,-246.58036771,0.0001999,2]
[391267204,1760454632398,-526.06450771,0.0001999,2]
[391267207,1760454632407,-611.87702191,0.0001999,2]
[391267210,1760454632416,-564.85671894,0.0001999,2]
[391267213,1760454632425,-500.0,0.0001999,2]
[391267216,1760454632435,-500.0,0.0001999,2]
[391267219,1760454632444,-205.76099886,0.0001999,2]
[391267222,1760454632454,-215.14949899,0.0001999,2]
[391267224,1760454632463,-63615.00386158,0.00019991,2]
[391267226,1760454632475,-5019.37226161,0.00019991,2]
[391267255,1760454637834,-301365.62387681,0.00019991,2]
[391267256,1760454637845,-499.99,0.00019991,2]
[391267257,1760454637857,-320.19512474,0.0002,2]
[391267258,1760454637867,-421.72081318,0.00020073,2]
[391267259,1760454637882,-500.0,0.00020073,2]
[391267260,1760454637892,-500.0,0.00020073,2]
[391267261,1760454637903,-500.81563909,0.00020073,2]
[391267262,1760454637913,-501.51297254,0.00020073,2]
[391267263,1760454637923,-500.0,0.00020073,2]
[391267264,1760454637933,-500.0,0.00020073,2]
[391267265,1760454637943,-500.0,0.00020073,2]
[391267266,1760454637952,-500.0,0.00020073,2]
[391267267,1760454637963,-1953.23,0.00020089,2]
[391267268,1760454637973,-1953.23,0.00020089,2]
[391267269,1760454637982,-1953.23,0.00020089,2]
[391267270,1760454637991,-1953.23,0.00020089,2]
[391267271,1760454638001,-1953.23,0.00020089,2]
[391267272,1760454638011,-1953.23,0.00020089,2]
[391267273,1760454638021,-1953.23,0.00020089,2]
[391267274,1760454638031,-1953.23,0.00020089,2]
[391267275,1760454638040,-1953.23,0.00020089,2]
[391267276,1760454638050,-1953.23,0.00020089,2]
[391267277,1760454638061,-1953.23,0.00020089,2]
[391267278,1760454638072,-1953.23,0.00020089,2]
[391267279,1760454638082,-1953.23,0.00020089,2]
[391267280,1760454638092,-1953.23,0.00020089,2]
[391267281,1760454638104,-1953.23,0.00020089,2]
[391267282,1760454638117,-1953.23,0.00020089,2]
[391267283,1760454638130,-1953.23,0.00020089,2]
[391267284,1760454638139,-1953.23,0.00020089,2]
[391267285,1760454638150,-1953.23,0.00020089,2]
[391267286,1760454638160,-1953.23,0.00020089,2]
[391267287,1760454638170,-1953.23,0.00020089,2]
[391267288,1760454638180,-1953.23,0.00020089,2]
[391267289,1760454638189,-1953.23,0.00020089,2]
[391267290,1760454638199,-1953.34517119,0.00020089,2]
[391267291,1760454638209,-195.60635801,0.0002009,2]
[391267292,1760454638218,-1024.1197618,0.00020091,2]
[391267293,1760454638227,-500.0,0.00020091,2]
[391267294,1760454638237,-500.0,0.00020091,2]
[391267295,1760454638246,-33836.9386255,0.00020091,2]
[391267296,1760454638255,-6666.7102388,0.00020091,2]
[391267297,1760454638266,-737.15,0.00020091,2]
[391267298,1760454638275,-737.15,0.00020091,2]
[391267299,1760454638285,-737.15,0.00020091,2]
[391267300,1760454638294,-737.15,0.00020091,2]
[391267301,1760454638304,-737.15,0.00020091,2]
[391267302,1760454638313,-737.15,0.00020091,2]
[391267303,1760454638322,-737.15,0.00020091,2]
[391267304,1760454638331,-737.15,0.00020091,2]
[391267305,1760454638341,-737.15,0.00020091,2]
[391267306,1760454638350,-737.15,0.00020091,2]
[391267307,1760454638359,-737.15,0.00020091,2]
[391267308,1760454638369,-737.15,0.00020091,2]
[391267309,1760454638380,-737.15,0.00020091,2]
[391267310,1760454638389,-737.15,0.00020091,2]
[391267311,1760454638399,-737.15,0.00020091,2]
[391267312,1760454638408,-737.15,0.00020091,2]
[391267313,1760454638417,-737.15,0.00020091,2]
[391267314,1760454638427,-737.15,0.00020091,2]
[391267315,1760454638436,-737.15,0.00020091,2]
[391267316,1760454638445,-737.15,0.00020091,2]
[391267317,1760454638455,-737.15,0.00020091,2]
[391267318,1760454638464,-737.15,0.00020091,2]
[391267319,1760454638473,-737.15,0.00020091,2]
[391267320,1760454638483,-737.31327305,0.00020091,2]
[391267321,1760454638492,-631.749978,0.00020187,2]
[391267322,1760454638502,-407.79,0.00020329,2]
[391267323,1760454638511,-211.92986421,0.00020473,2]
[391267324,1760454638521,-300.0,0.00020492,2]
[391267325,1760454638530,-300.0,0.00020492,2]
[391267326,1760454638539,-300.0,0.00020492,2]
[391267327,1760454638548,-300.0,0.00020492,2]
[391267328,1760454638558,-300.0,0.00020492,2]
[391267329,1760454638567,-300.0,0.00020492,2]
[391267330,1760454638577,-300.0,0.00020492,2]
[391267331,1760454638586,-300.0,0.00020492,2]
[391267332,1760454638595,-300.0,0.00020492,2]
[391267333,1760454638604,-300.0,0.00020492,2]
[391267334,1760454638614,-300.0,0.00020492,2]
[391267335,1760454638623,-300.0,0.00020492,2]
[391267336,1760454638636,-300.0,0.00020492,2]
[391267337,1760454638645,-300.0,0.00020492,2]
[391267338,1760454638655,-300.0,0.00020492,2]
[391267339,1760454638665,-1787.48,0.00020584,2]
[391267340,1760454638674,-600.0,0.00020594,2]
[391267341,1760454638684,-1003.92937964,0.00020621,2]
[391267342,1760454638693,-1000.0,0.00020621,2]
[391267343,1760454638702,-1000.0,0.00020621,2]
[391267344,1760454638711,-236.38331008,0.00021073,2]
[391267345,1760454638721,-1500.0,0.00021168,2]
[391267346,1760454638730,-502.95316266,0.00021168,2]
[391267347,1760454638740,-151.0,0.000213,4]
[391267348,1760454638749,-393.22,0.00021351,3]
[391267349,1760454638758,-420.0,0.00021644,2]
[391267350,1760454638768,-260.83675595,0.00021673,2]
[391267351,1760454638778,-2000.0,0.00021716,2]
[391267352,1760454638788,-1680.0,0.00021747,2]
[391267353,1760454638798,-184.0,0.00021836,5]
[391267354,1760454638807,-151.0,0.000219,4]
[391267355,1760454638817,-237.00803039,0.00022264,2]
[391267356,1760454638826,-285.29020182,0.00022273,2]
[391267357,1760454638835,-500.0,0.000223,2]
[391267358,1760454638845,-500.0,0.000223,2]
[391267359,1760454638855,-500.46309833,0.000223,2]
[391267360,1760454638865,-501.21425316,0.000223,2]
[391267361,1760454638878,-500.23894583,0.000223,2]
[391267362,1760454638888,-500.0,0.000223,2]
[391267363,1760454638898,-33239.73,0.000223,7]
[391267364,1760454638908,-3574.96,0.00022455,2]
[391267365,1760454638918,-151.0,0.000225,9]
[391267366,1760454638928,-2201.03571392,0.00022504,2]
[391267367,1760454638937,-634.87926624,0.000226,2]
[391267368,1760454638947,-508.02299742,0.00022848,2]
[391267369,1760454638957,-1000.0,0.00022848,2]
[391267370,1760454638966,-1000.0,0.00022848,2]
[391267371,1760454638976,-309.74364769,0.00022873,2]
[391267372,1760454638985,-160.0,0.00023,2]
[391267373,1760454638994,-151.0,0.000231,8]
[391267374,1760454639004,-95000.0,0.00023288,30]
[391267375,1760454639014,-1500.0,0.00023396,2]
[391267376,1760454639023,-440.50785904,0.00023396,2]
[391267377,1760454639034,-334.19709356,0.00023473,2]
[391267378,1760454639044,-1024.1197618,0.00023475,2]
[391267379,1760454639054,-181.0,0.00023479,10]
[391267380,1760454639064,-447.44655504,0.00023526,2]
[391267381,1760454639073,-587.0,0.00023571,2]
[391267382,1760454639083,-1729.0,0.00023797,2]
[391267383,1760454639092,-151.0,0.000238,7]
[391267384,1760454639102,-1500.0,0.00023944,2]
[391267385,1760454639116,-358.65053943,0.00024073,2]
[391267386,1760454639127,-1487.5441232,0.00024081,2]
[391267387,1760454639137,-7550.0415344,0.000241,2]
[391267388,1760454639148,-200.0,0.000241,7]
[391267389,1760454639157,-150.0,0.000241,2]
[391267390,1760454639167,-160.0,0.00024228,2]
[391267391,1760454639176,-160.0,0.00024228,2]
[391267392,1760454639187,-402.43064913,0.00024228,2]
[391267393,1760454639196,-417.15472785,0.00024228,2]
[391267394,1760454639205,-175.42339598,0.000243,2]
[391267395,1760454639215,-200.92979394,0.000243,2]
[391267396,1760454639224,-508.4794873,0.000243,2]
[391267397,1760454639234,-211.57054547,0.000243,2]
[391267398,1760454639243,-5362.44,0.00024327,2]
[391267399,1760454639253,-151.0,0.000244,8]
[391267400,1760454639264,-175.42339598,0.000245,2]
[391267401,1760454639274,-508.4794873,0.000245,2]
[391267402,1760454639285,-211.57054547,0.000245,2]
[391267403,1760454639295,-33239.73,0.000245,7]
[391267404,1760454639306,-380.0,0.00024658,2]
[391267405,1760454639316,-383.1039853,0.00024673,2]
[391267406,1760454639326,-150.0,0.00024773,2]
[391267407,1760454639335,-152.02672942,0.00024773,2]
[391267408,1760454639345,-160.0,0.00024787,3]
[391267409,1760454639355,-175.42339598,0.000248,2]
[391267410,1760454639364,-508.4794873,0.000248,2]
[391267411,1760454639377,-28672.65636699,0.000248,3]
[391267421,1760454639523,-177.61376417,0.00024818,2]
[391267422,1760454639532,-331785.552378,0.000249,2]
[391267424,1760454639541,-864.0,0.00024918,20]
[391267425,1760454639551,-266.547,0.00024959,8]
[391267427,1760454639560,-331.9159584,0.00024972,2]
[391267428,1760454639569,-1684.6419767,0.00024994,2]
[391267429,1760454639578,-175.42339598,0.00025,2]
[391267430,1760454639587,-508.4794873,0.00025,2]
[391267431,1760454639596,-151.0,0.00025,19]
[391267432,1760454639605,-2201.03571392,0.00025018,2]
[391267433,1760454639614,-201.99,0.000251,7]
[391267435,1760454639626,-199.0,0.00025205,7]
[391267437,1760454639636,-407.55743117,0.00025273,2]
[391267438,1760454639645,-508.4794873,0.000253,2]
[391267439,1760454639655,-301.77797328,0.00025321,2]
[391267440,1760454639664,-199.0,0.00025479,8]
[391267441,1760454639674,-239.77,0.0002551,7]
[391267442,1760454639683,-823.0,0.0002567,2]
[391267443,1760454639693,-184.0,0.00025671,17]
[391267444,1760454639703,-151.0,0.000257,14]
[391267445,1760454639712,-269.49706005,0.00025753,9]
[391267446,1760454639722,-160.0,0.00025782,4]
[391267447,1760454639731,-432.01087704,0.00025873,2]
[391267448,1760454639740,-5961.52,0.00026027,2]
[391267449,1760454639749,-200.0,0.000261,7]
[391267450,1760454639758,-7149.92,0.00026198,2]
[391267451,1760454639768,-358.9,0.00026233,3]
[391267452,1760454639777,-402.43064913,0.000263,7]
[391267453,1760454639787,-33239.73,0.000263,7]
[391267454,1760454639796,-456.46432291,0.00026473,2]
[391267455,1760454639805,-631.749978,0.00026676,2]
[391267456,1760454639814,-160.0,0.00026777,5]
[391267457,1760454639823,-1024.1197618,0.00026859,2]
[391267458,1760454639832,-2161.0,0.00026944,2]
[391267459,1760454639842,-631.0,0.00026944,2]
[391267460,1760454639851,-411.0,0.00026944,2]
[391267461,1760454639860,-418.168,0.00026944,2]
[391267462,1760454639870,-150.0,0.00026992,2]
[391267463,1760454639880,-984.342,0.00026992,2]
[391267464,1760454639889,-480.91776878,0.00027073,2]
[391267465,1760454639899,-200.0,0.000271,7]
[391267466,1760454639908,-1006.4760575,0.00027123,3]
[391267467,1760454639920,-470.0,0.00027271,2]
[391267468,1760454639929,-157.47642121,0.00027309,2]
[391267469,1760454639938,-8495.4132242,0.00027359,12]
[391267470,1760454639947,-5000.0,0.00027359,12]
[391267471,1760454639957,-5000.0,0.00027359,14]
[391267472,1760454639966,-5000.0,0.00027359,12]
[391267473,1760454639976,-5000.0,0.00027359,16]
[391267474,1760454639985,-1000.0,0.00027373,2]
[391267475,1760454639994,-1000.0,0.00027373,2]
[391267476,1760454640004,-1000.0,0.00027373,2]
[391267477,1760454640013,-1000.0,0.00027373,2]
[391267478,1760454640022,-162.38071901,0.00027373,2]
[391267479,1760454640031,-1000.0,0.00027373,2]
[391267480,1760454640040,-1000.0,0.00027373,2]
[391267481,1760454640049,-151.0,0.00027373,2]
[391267482,1760454640058,-151.0,0.00027373,2]
[391267483,1760454640067,-151.0,0.00027373,2]
[391267484,1760454640076,-1000.0,0.00027373,2]
[391267485,1760454640087,-1000.0,0.00027373,2]
[391267486,1760454640096,-151.0,0.00027373,2]
[391267487,1760454640106,-151.0,0.00027373,2]
[391267488,1760454640119,-1000.0,0.00027373,2]
[391267489,1760454640130,-1000.0,0.00027373,2]
[391267490,1760454640139,-151.0,0.00027373,2]
[391267491,1760454640148,-151.0,0.00027373,2]
[391267492,1760454640158,-151.0,0.00027373,2]
[391267493,1760454640167,-1000.0,0.00027373,2]
[391267494,1760454640177,-1000.0,0.00027373,2]
[391267495,1760454640188,-151.0,0.00027373,2]
[391267496,1760454640198,-1000.0,0.00027373,2]
[391267497,1760454640207,-151.0,0.00027373,2]
[391267498,1760454640216,-151.0,0.00027373,2]
[391267499,1760454640227,-151.0,0.00027373,2]
[391267500,1760454640236,-1000.0,0.00027373,2]
[391267501,1760454640245,-1000.0,0.00027373,2]
[391267502,1760454640254,-151.0,0.00027373,2]
[391267503,1760454640264,-151.0,0.00027373,2]
[391267504,1760454640273,-151.0,0.00027373,2]
[391267505,1760454640283,-1000.0,0.00027373,2]
[391267506,1760454640292,-1000.0,0.00027373,2]
[391267507,1760454640301,-18603.8837,0.00027373,2]
[391267508,1760454640310,-151.0,0.00027373,2]
[391267509,1760454640320,-151.0,0.00027373,2]
[391267510,1760454640330,-1000.0,0.00027373,2]
[391267511,1760454640339,-250.0,0.00027373,2]
[391267512,1760454640349,-1000.0,0.00027373,2]
[391267513,1760454640359,-151.0,0.00027373,2]
[391267514,1760454640368,-151.0,0.00027373,2]
[391267515,1760454640379,-151.0,0.00027373,2]
[391267516,1760454640388,-1000.0,0.00027373,2]
[391267517,1760454640398,-250.0,0.00027373,2]
[391267518,1760454640408,-1000.0,0.00027373,2]
[391267519,1760454640417,-151.0,0.00027373,2]
[391267520,1760454640426,-151.0,0.00027373,2]
[391267521,1760454640436,-151.0,0.00027373,2]
[391267522,1760454640445,-1000.0,0.00027373,2]
[391267523,1760454640455,-250.0,0.00027373,2]
[391267524,1760454640464,-1000.0,0.00027373,2]
[391267525,1760454640473,-151.0,0.00027373,2]
[391267526,1760454640483,-194.98160629,0.00027373,2]
[391267527,1760454640493,-1000.0,0.00027373,2]
[391267528,1760454640502,-250.0,0.00027373,2]
[391267529,1760454640511,-1000.0,0.00027373,2]
[391267530,1760454640521,-151.0,0.00027373,2]
[391267531,1760454640530,-151.0,0.00027373,2]
[391267532,1760454640540,-250.0,0.00027373,2]
[391267533,1760454640549,-162.380719,0.00027373,2]
[391267534,1760454640559,-1000.0,0.00027373,2]
[391267535,1760454640568,-151.0,0.00027373,2]
[391267536,1760454640578,-1000.0,0.00027373,2]
[391267537,1760454640588,-151.0,0.00027373,2]
[391267538,1760454640598,-250.0,0.00027373,2]
[391267539,1760454640608,-1000.0,0.00027373,2]
[391267540,1760454640617,-1000.0,0.00027373,2]
[391267541,1760454640627,-151.0,0.00027373,2]
[391267542,1760454640636,-151.0,0.00027373,2]
[391267543,1760454640646,-250.0,0.00027373,2]
[391267544,1760454640656,-1000.0,0.00027373,2]
[391267545,1760454640665,-1000.0,0.00027373,2]
[391267546,1760454640675,-151.0,0.00027373,2]
[391267547,1760454640685,-2030.296672,0.00027373,2]
[391267548,1760454640695,-151.0,0.00027373,2]
[391267549,1760454640704,-250.0,0.00027373,2]
[391267550,1760454640714,-1000.0,0.00027373,2]
[391267551,1760454640724,-1000.0,0.00027373,2]
[391267552,1760454640734,-151.0,0.00027373,2]
[391267553,1760454640743,-151.0,0.00027373,2]
[391267554,1760454640753,-250.0,0.00027373,2]
[391267555,1760454640762,-1000.0,0.00027373,2]
[391267556,1760454640772,-1000.0,0.00027373,2]
[391267557,1760454640782,-151.0,0.00027373,2]
[391267558,1760454640792,-250.0,0.00027373,2]
[391267559,1760454640801,-1000.0,0.00027373,2]
[391267560,1760454640811,-1000.0,0.00027373,2]
[391267561,1760454640820,-151.0,0.00027373,2]
[391267562,1760454640829,-1000.0,0.00027373,2]
[391267563,1760454640838,-1000.0,0.00027373,2]
[391267564,1760454640848,-250.0,0.00027373,2]
[391267565,1760454640857,-279.53150536,0.00027373,2]
[391267566,1760454640867,-151.0,0.00027373,2]
[391267567,1760454640877,-1000.0,0.00027373,2]
[391267568,1760454640887,-151.0,0.00027373,2]
[391267569,1760454640896,-250.0,0.00027373,2]
[391267570,1760454640905,-151.0,0.00027373,2]
[391267571,1760454640915,-151.0,0.00027373,2]
[391267572,1760454640925,-250.0,0.00027373,2]
[391267573,1760454640934,-151.0,0.00027373,2]
[391267574,1760454640943,-151.0,0.00027373,2]
[391267575,1760454640952,-500.0,0.00027373,2]
[391267576,1760454640962,-151.0,0.00027373,2]
[391267577,1760454640972,-151.0,0.00027373,2]
[391267578,1760454640981,-500.0,0.00027373,2]
[391267579,1760454640990,-151.0,0.00027373,2]
[391267580,1760454641001,-151.0,0.00027373,2]
[391267581,1760454641010,-500.0,0.00027373,2]
[391267582,1760454641019,-151.0,0.00027373,2]
[391267583,1760454641028,-157.77191756,0.00027373,2]
[391267584,1760454641038,-500.0,0.00027373,2]
[391267585,1760454641047,-151.0,0.00027373,2]
[391267586,1760454641056,-500.0,0.00027373,2]
[391267587,1760454641066,-500.0,0.00027373,2]
[391267588,1760454641075,-151.0,0.00027373,2]
[391267589,1760454641084,-500.0,0.00027373,2]
[391267590,1760454641094,-500.0,0.00027373,2]
[391267591,1760454641108,-151.0,0.00027373,2]
[391267592,1760454641117,-500.0,0.00027373,2]
[391267593,1760454641128,-500.0,0.00027373,2]
[391267594,1760454641138,-250.0,0.00027373,2]
[391267595,1760454641149,-151.0,0.00027373,2]
[391267596,1760454641158,-500.0,0.00027373,2]
[391267597,1760454641167,-500.0,0.00027373,2]
[391267598,1760454641177,-250.0,0.00027373,2]
[391267599,1760454641187,-151.0,0.00027373,2]
[391267600,1760454641196,-500.0,0.00027373,2]
[391267601,1760454641206,-500.0,0.00027373,2]
[391267602,1760454641215,-250.0,0.00027373,2]
[391267603,1760454641224,-151.0,0.00027373,2]
[391267604,1760454641233,-500.0,0.00027373,2]
[391267605,1760454641243,-500.0,0.00027373,2]
[391267606,1760454641251,-250.0,0.00027373,2]
[391267607,1760454641260,-151.0,0.00027373,2]
[391267608,1760454641270,-505.53359552,0.00027373,2]
[391267609,1760454641279,-500.0,0.00027373,2]
[391267610,1760454641288,-151.0,0.00027373,2]
[391267611,1760454641297,-250.0,0.00027373,2]
[391267612,1760454641307,-151.0,0.00027373,2]
[391267613,1760454641316,-500.0,0.00027373,2]
[391267614,1760454641324,-151.0,0.00027373,2]
[391267615,1760454641334,-151.0,0.00027373,2]
[391267616,1760454641343,-250.0,0.00027373,2]
[391267617,1760454641351,-500.0,0.00027373,2]
[391267618,1760454641361,-250.0,0.00027373,2]
[391267619,1760454641370,-151.0,0.00027373,2]
[391267620,1760454641379,-500.0,0.00027373,2]
[391267621,1760454641388,-250.0,0.00027373,2]
[391267622,1760454641398,-151.0,0.00027373,2]
[391267623,1760454641407,-500.0,0.00027373,2]
[391267624,1760454641415,-250.0,0.00027373,2]
[391267625,1760454641424,-500.0,0.00027373,2]
[391267626,1760454641442,-250.0,0.00027373,2]
[391267627,1760454641451,-500.0,0.00027373,2]
[391267628,1760454641460,-250.0,0.00027373,2]
[391267629,1760454641470,-250.0,0.00027373,2]
[391267630,1760454641479,-500.0,0.00027373,2]
[391267631,1760454641487,-250.0,0.00027373,2]
[391267632,1760454641496,-500.0,0.00027373,2]
[391267633,1760454641505,-250.0,0.00027373,2]
[391267634,1760454641515,-500.0,0.00027373,2]
[391267635,1760454641524,-250.0,0.00027373,2]
[391267636,1760454641534,-500.0,0.00027373,2]
[391267637,1760454641542,-250.0,0.00027373,2]
[391267638,1760454641551,-476.17714604,0.00027373,2]
[391267639,1760454641560,-250.0,0.00027373,2]
[391267640,1760454641571,-250.0,0.00027373,2]
[391267641,1760454641580,-486.99699831,0.00027397,15]
[391267642,1760454641589,-5961.52,0.00027397,4]
[391267643,1760454641598,-464.353221,0.00027397,30]
[391267644,1760454641607,-150.0,0.00027397,5]
[391267645,1760454641616,-5132.01,0.000274,2]
[391267646,1760454641626,-3157.81,0.000274,2]
[391267647,1760454641637,-1000.0,0.0002741,30]
[391267648,1760454641645,-470.0,0.00027417,7]
[391267649,1760454641655,-2105.41764886,0.00027428,2]
[391267650,1760454641664,-1035.43646693,0.00027483,2]
[391267651,1760454641673,-2201.03571392,0.00027533,2]
[391267652,1760454641682,-505.37121465,0.00027673,2]
[391267653,1760454641692,-156.63,0.00027695,15]
[391267654,1760454641702,-159.24,0.00027696,15]
[391267655,1760454641711,-468.0,0.0002772,2]
[391267656,1760454641721,-468.0,0.00027722,2]
[391267657,1760454641739,-151.0,0.00027771,2]
[391267658,1760454641749,-160.0,0.00027772,6]
[391267659,1760454641760,-468.0,0.00027778,2]
[391267660,1760454641769,-156.64315533,0.00027795,15]
[391267661,1760454641780,-159.24,0.00027796,15]
[391267662,1760454641789,-198.0,0.00027826,2]
[391267663,1760454641798,-468.0,0.00027849,2]
[391267664,1760454641807,-470.0,0.00027855,2]
[391267665,1760454641816,-155.0,0.00027863,26]
[391267666,1760454641825,-159.24,0.00027896,15]
[391267667,1760454641834,-19292.2273969,0.00027921,2]
[391267668,1760454641843,-1152.0,0.00027955,2]
[391267669,1760454641852,-159.24,0.00027996,15]
[391267670,1760454641861,-468.0,0.00028064,2]
[391267671,1760454641870,-8937.4,0.00028069,2]
[391267672,1760454641879,-159.24,0.00028096,15]
[391267673,1760454641888,-200.0,0.000281,7]
[391267674,1760454641897,-33239.73,0.000281,7]
[391267675,1760454641906,-159.24,0.00028196,15]
[391267676,1760454641915,-529.82466052,0.00028273,2]
[391267677,1760454641923,-159.24,0.00028296,15]